Workbook

Sheet Intro
B1: Mine Energy Toolkit_Introduction
B3: Purpose
B4: This workbook is intended to give an elementary understanding of the economics of heat networks.
B5: The target audience is local authority staff who have very little understanding of energy economics or heat networks.
B7: Heat Network Schematic
G10: Customer
D17: This red box denotes a heat network. Heat flows around it. Customers will extract heat from the network. Generators will add heat into the network. | G17: Distributor | I17: Supplier
G23: Generator
B27: The generator needs to be paid for the cost of the heat that they produce.
B28: The distributor needs paying to cover the capital and operational costs of the heat network.
B29: The supplier buys heat from the generator, pays the distributor for use of their network, and charges the customers.
B30: The electricity and gas markets follow this model and are deliberately separated so that the Generator, Distributor and Suppliers are all different companies.
B31: For heat networks, there is normally one company, the Energy Services Company (ESCo), which acts as Generator, Distributor and Supplier.

Sheet Electricity Market
B1: Mine Energy Toolkit_UK Electricity Market
B3: Electricity Market
B4: On a commercial electricity bill, you can see a breakdown of charges which fall broadly into Generation, Distribution and Taxation.
B5: (Generation is also known as "Wholesale" Cost.)
B7: The table below shows how this is forecast to change by 2025.
B8: Electricity Price p/kWh | C8: 2019 | F8: 2022 | I8: 2025
B9: Electricity Wholesale Cost | C9: 5 | F9: 30 | I9: 9 | J9: Generation is the big unknown - it depends on global gas prices.
B10: Electricity Distribution Cost | C10: 2 | F10: 2 | I10: 2 | J10: Distribution is a regulated market - these costs are fairly stable over time.
B11: Electricity Taxation | C11: 5 | F11: 5 | I11: 1 | J11: Taxation is policy driven. The UK government has stated that it will reduce the taxation on electricity by the end of 2024.
B12: Electricity Supply Price | C12: =SUM(C9:C11) -> 12 | F12: =SUM(F9:F11) -> 37 | I12: =SUM(I9:I11) -> 12
B13: Tax/Total | C13: =C11/C12 -> 0.4166666667 | F13: =F11/F12 -> 0.1351351351 | I13: =I11/I12 -> 0.08333333333
B29: The economic case for private wire
B30: The key benefit of private wire is that it legally avoids taxation.
B31: (It also avoids paying distribution costs to a third party, but a separate physical connection will need to be installed which will cost just as much, if not more.)
B32: In 2019, the benefit of avoiding taxation was over 40% of the electricity bill. By 2025, when the government has reduced taxation on electrity, this benefit will be less than 10% of the total bill.
B33: (There are other benefits to private wire such as security of supply and price surety for both parties.)
B34: What this means is that the cost benefit analysis of a private wire will show a much weaker business case from 2025 onwards.

Sheet Cost of generation
B1: Mine Energy Toolkit_Cost of Heat Generation
B3: Cost of Heat Generation
B4: Cost of heat from heat pump | D4: When heat is generated by a heat pump (whether air source, ground source, water source or mine energy), the driver of heat cost is the Electricity Supply Price combined with the system performance.
B5: Cost of heat from Power Station | D5: When heat is generated by a Power Station (whether Energy from Waste or biomass), the driver of heat cost is the Electricity Wholesale Cost.
B6: Electricity Price p/kWh | C6: 2025
B7: Electricity Wholesale Cost | C7: =+'Electricity Market'!I9 -> 9 | D7: --> drives cost of heat from a power station
B8: Electricity Distribution Cost | C8: =+'Electricity Market'!I10 -> 2
B9: Electricity Taxation | C9: =+'Electricity Market'!I11 -> 1
B10: Electricity Supply Price | C10: =SUM(C7:C9) -> 12 | D10: --> drives cost of heat from a heat pump
D12: To obtain heat from a power station (whether Energy from Waste or biomass), you need to divert heat away from the turbines. This means that less electricity can be produced and sold. The ratio of heat:electricity is known as the "z-factor" and is typcially around 6:1. So to generate 6 units of heat, we would lose out on 1 unit of electricity. With a wholesale electricity cost of 9p/kWh, this would mean a cost of heat production of 9p/6=1.5p/kWh.
D14: Dependent on the heat pump used, the mine water temperature, the temperature of the network and the depth of the mine; a mine energy heat pump might have an average efficiency (COP) of between 2 and 4. At COP2 the cost of heat would be 12p/2=6p/kWh; at COP4 the cost of heat would be 12p/4=3p/kWh. The Coal Authority may also charge a fee for access to the mines.
D16: These figures indicate the direct costs of heat production. There will be some indirect costs, such as maintenance on plant and administration costs. Plus the seller of heat may wish to make a profit on it. The price that the Energy Service Company ends up paying for the heat will therefore be a little higher than the figures inicated here.

Sheet Sheet1 (hidden)
B1: W=J/s
D2: W=K.kg/m3.J/kg/K.m3/s
D3: W=kgm2/s3
B4: P | C4: =C5*C6*C7*C8/C9 -> 75461.53846 | D4: W
B5: h | C5: 100 | D5: m
B6: r | C6: 1000 | D6: kg/m3
B7: g | C7: 9.81 | D7: m/s2
B8: Q | C8: 0.05 | D8: m3/s
B9: sig | C9: 0.65
B11: H | C11: =+(C13*C12*C6*C8)/(1-1/C14) -> 1120000 | D11: W
B12: c | C12: 4200 | D12: J/kg/K
B13: dT | C13: 4 | D13: K
B14: COP | C14: 4

Sheet Cost of distribution
B1: Mine Energy Toolkit_Cost of Heat
B3: Cost of Distribution
B5: Heat networks will cost £1000 to £2000 per meter to install.
B6: In areas of low density it will be cheaper to install individual heat pumps than a heat network.
B7: A 2-storey terrace will cost over £10,000 per house and will almost definitely be better suited to individual heat pumps.
B8: A 4-storey terrace or higher will still cost over £10,000 per house, but with the higher heat demand might make the economics of a heat network viable.
B9: City centres, industrial centres, and certain campuses (university/NHS) have high enough heat demands to warrant a heat network.

Sheet Heat Network Cashflow
B1: Heat Network Cashflow | J1: Year 0 | K1: Year 1 | L1: Year 2 | M1: Year 3 | N1: Year 4 | O1: Year 5 | P1: Year 6 | Q1: Year 7 | R1: Year 8 | S1: Year 9 | T1: Year 10 | U1: Year 11 | V1: Year 12 | W1: Year 13 | X1: Year 14 | Y1: Year 15 | Z1: Year 16 | AA1: Year 17 | AB1: Year 18 | AC1: Year 19 | AD1: Year 20
B3: Introduction
B4: This is intended to educate on the aspects of a heat network model, with a particular reference to Mine Energy.
B5: It is not a functioning model and should only be used for educational purposes.
B6: We're going to use blue text to denote inputs on this model. Formulas will be in black text.
B7: Normally we would place all inputs on their own tab. Here, we leave the inputs on this page to make it easier for the reader to follow the story.
B8: The model lines are shaded in grey.
B10: Energy flows
B11: Energy demand
B12: The first step is to look at the energy demand.
B14: A heat network project will build up over time:
B15: The average UK house uses 12,000kWh per year of gas. But the typical gas boiler is only 80% efficient, so that equates to a demand for heat of 10,000kWh per year.
B16: Domestic retrofit house numbers | I16: # | K16: 100 | L16: 200 | M16: 300 | N16: 400 | O16: 500 | P16: =+O16 -> 500 | Q16: =+P16 -> 500 | R16: 500 | S16: 500 | T16: 500 | U16: 500 | V16: 500 | W16: 500 | X16: 500 | Y16: 500 | Z16: 500 | AA16: 500 | AB16: 500 | AC16: 500 | AD16: 500
B17: Domestic retrofit heat demand | C17: 10000 | D17: kWh/year per house | I17: kWh/year | K17: =+$C$17*K16 -> 1000000 | L17: 2000000 | M17: 3000000 | N17: 4000000 | O17: 5000000 | P17: 5000000 | Q17: 5000000 | R17: 5000000 | S17: 5000000 | T17: 5000000 | U17: 5000000 | V17: 5000000 | W17: 5000000 | X17: 5000000 | Y17: 5000000 | Z17: 5000000 | AA17: 5000000 | AB17: 5000000 | AC17: 5000000 | AD17: 5000000
B18: New build properties will typically require less than 5000kWh/year of heat.
B19: Domestic new-build house numbers | I19: # | K19: 100 | L19: 200 | M19: 300 | N19: 400 | O19: 500 | P19: =+O19 -> 500 | Q19: =+P19 -> 500 | R19: =+Q19 -> 500 | S19: =+R19 -> 500 | T19: =+S19 -> 500 | U19: =+T19 -> 500 | V19: =+U19 -> 500 | W19: =+V19 -> 500 | X19: =+W19 -> 500 | Y19: =+X19 -> 500 | Z19: =+Y19 -> 500 | AA19: =+Z19 -> 500 | AB19: =+AA19 -> 500 | AC19: =+AB19 -> 500 | AD19: =+AC19 -> 500
B20: Domestic new-build heat demand | C20: 4000 | D20: kWh/year per house | I20: kWh/year | K20: =+$C$20*K19 -> 400000 | L20: 800000 | M20: 1200000 | N20: 1600000 | O20: 2000000 | P20: 2000000 | Q20: 2000000 | R20: 2000000 | S20: 2000000 | T20: 2000000 | U20: 2000000 | V20: 2000000 | W20: 2000000 | X20: 2000000 | Y20: 2000000 | Z20: 2000000 | AA20: 2000000 | AB20: 2000000 | AC20: 2000000 | AD20: 2000000
B21: A proper Techno-Economic model will have a more detailed breakdown of all the property types.
B23: Commercial properties have more variety and it is common to look at their floor area and the size of their heat connection (measured in kW) as well as the annual estimate of consumption.
B24: School | C24: 150000 | D24: kWh/year per | F24: 200 | G24: kW connection | I24: # | K24: 0 | L24: 1 | M24: =+L24 -> 1 | N24: =+M24 -> 1 | O24: 1 | P24: 1 | Q24: 1 | R24: 1 | S24: 1 | T24: 1 | U24: 1 | V24: 1 | W24: 1 | X24: 1 | Y24: 1 | Z24: 1 | AA24: 1 | AB24: 1 | AC24: 1 | AD24: 1
B25: Offices | C25: 50000 | D25: kWh/year per | F25: 60 | G25: kW connection | I25: # | K25: 0 | L25: 1 | M25: 1 | N25: 2 | O25: 2 | P25: 3 | Q25: =+P25 -> 3 | R25: =+Q25 -> 3 | S25: 3 | T25: 3 | U25: 3 | V25: 3 | W25: 3 | X25: 3 | Y25: 3 | Z25: 3 | AA25: 3 | AB25: 3 | AC25: 3 | AD25: 3
B27: Commercial connection size | I27: kW | K27: =+SUMPRODUCT($F$24:$F$25,K24:K25) -> 0 | L27: 260 | M27: 260 | N27: 320 | O27: 320 | P27: 380 | Q27: 380 | R27: 380 | S27: 380 | T27: 380 | U27: 380 | V27: 380 | W27: 380 | X27: 380 | Y27: 380 | Z27: 380 | AA27: 380 | AB27: 380 | AC27: 380 | AD27: 380
B28: Commercial heat demand | I28: kWh/year | K28: =+SUMPRODUCT($C$24:$C$25,K24:K25) -> 0 | L28: 200000 | M28: 200000 | N28: 250000 | O28: 250000 | P28: 300000 | Q28: 300000 | R28: 300000 | S28: 300000 | T28: 300000 | U28: 300000 | V28: 300000 | W28: 300000 | X28: 300000 | Y28: 300000 | Z28: 300000 | AA28: 300000 | AB28: 300000 | AC28: 300000 | AD28: 300000
B30: We now know the total heat demand which must be supplied each year to customer properties. | I30: kWh/year | K30: =+K17+K28+K20 -> 1400000 | L30: 3000000 | M30: 4400000 | N30: 5850000 | O30: 7250000 | P30: 7300000 | Q30: 7300000 | R30: 7300000 | S30: 7300000 | T30: 7300000 | U30: 7300000 | V30: 7300000 | W30: 7300000 | X30: 7300000 | Y30: 7300000 | Z30: 7300000 | AA30: 7300000 | AB30: 7300000 | AC30: 7300000 | AD30: 7300000
B31: The heat network itself is a series of pipes buried in the ground. They will lose heat to the ground.
B32: Heat losses | C32: 0.2 | D32: of heat demand | I32: kWh/year | K32: =+$C$32*K30 -> 280000 | L32: 600000 | M32: 880000 | N32: 1170000 | O32: 1450000 | P32: 1460000 | Q32: 1460000 | R32: 1460000 | S32: 1460000 | T32: 1460000 | U32: 1460000 | V32: 1460000 | W32: 1460000 | X32: 1460000 | Y32: 1460000 | Z32: 1460000 | AA32: 1460000 | AB32: 1460000 | AC32: 1460000 | AD32: 1460000
B33: This then tells us that total heat that must be supplied to meat that demand | I33: kWh/year | K33: =+K30+K32 -> 1680000 | L33: 3600000 | M33: 5280000 | N33: 7020000 | O33: 8700000 | P33: 8760000 | Q33: 8760000 | R33: 8760000 | S33: 8760000 | T33: 8760000 | U33: 8760000 | V33: 8760000 | W33: 8760000 | X33: 8760000 | Y33: 8760000 | Z33: 8760000 | AA33: 8760000 | AB33: 8760000 | AC33: 8760000 | AD33: 8760000
B35: Note: the example that I have drawn up would make a tiny heat network - just 1000 homes, a school and a few offices.
B36: It is unlikely that a mine energy project would work on this small scale because of the high capital cost involved.
B38: Energy supply
B39: Now that we know how much heat energy we need to supply, we look at where that heat is coming from.
B40: A low carbon heat network will have most of its heat coming from heat pumps, power stations, or industrial waste heat.
B41: They will then typically have gas boilers for meeting peak loads (i.e. 7am when everyone is heating their homes and showering at the same time) and for backup.
B42: The gas boilers will eventually be phased out, though, as we transition towards net zero.
B43: For educational purposes, we will assume that the mine energy is the primary source of heat, and all extra heat is bought in (from say a nearby Energy from Waste plant).
B45: Let's assume that our mine has a maximum thermal output of | G45: 400 | H45: kW
B46: So if it works flat out for all 8760 hours of the year it would produce | G46: =8760*G45 -> 3504000 | H46: kWh/year of heat
B47: But 10% of the time it is down for maintenance, so it can only really produce up to | G47: =+G46*90% -> 3153600 | H47: kWh/year of heat
B49: The techno-economic model will get detailed at this point, looking at hourly data, peak demands, temperatures, thermal stores, flow rates and more.
B50: We shortcut that here and assume that the mine heat can meet at most | G50: 0.7 | H50: of heat demand
B52: So now we know where our heat is coming from:
B53: Heat demand | I53: kWh/year | K53: =+K33 -> 1680000 | L53: 3600000 | M53: 5280000 | N53: 7020000 | O53: 8700000 | P53: 8760000 | Q53: 8760000 | R53: 8760000 | S53: 8760000 | T53: 8760000 | U53: 8760000 | V53: 8760000 | W53: 8760000 | X53: 8760000 | Y53: 8760000 | Z53: 8760000 | AA53: 8760000 | AB53: 8760000 | AC53: 8760000 | AD53: 8760000
B54: Mine-source heat supply | I54: kWh/year | K54: =+MIN($G$47,$G$50*K53) -> 1176000 | L54: 2520000 | M54: 3153600 | N54: 3153600 | O54: 3153600 | P54: 3153600 | Q54: 3153600 | R54: 3153600 | S54: 3153600 | T54: 3153600 | U54: 3153600 | V54: 3153600 | W54: 3153600 | X54: 3153600 | Y54: 3153600 | Z54: 3153600 | AA54: 3153600 | AB54: 3153600 | AC54: 3153600 | AD54: 3153600
B55: Heat supply from nearby Energy from Waste plant | I55: kWh/year | K55: =+K53-K54 -> 504000 | L55: 1080000 | M55: 2126400 | N55: 3866400 | O55: 5546400 | P55: 5606400 | Q55: 5606400 | R55: 5606400 | S55: 5606400 | T55: 5606400 | U55: 5606400 | V55: 5606400 | W55: 5606400 | X55: 5606400 | Y55: 5606400 | Z55: 5606400 | AA55: 5606400 | AB55: 5606400 | AC55: 5606400 | AD55: 5606400
B57: We now need to think about all the electricity requirements in our heat network.
B58: We need electricity for (a) the heat pump, (b) to pump fluid around the mine borehole, (c) to pump water around the heat network.
B59: The deeper the borehole, the more pumping is required. Ideally, you want warm water as close to the surface as possible.
B61: The efficiency of the heat pump will depend on various factors, notably the temperature of the heat network, the temperature of the heat source, the surface volume of the heat exchanger, and the refrigerant gas used.
B62: In winter, when most heat is needed, the average air temperature is typically below 5°C. This pulls down the average annual efficiency of an air-source heat pump.
B63: The temperature of mine-source water will be between 10°C and 20°C, even in the depths of winter. That will give mine source heat pumps a high annual efficiency.
B65: We will assume here a seasonal coefficient of performance (SCOP) for the mine-source heat pump
B66: Annual efficiency of mine-source heat pump | F66: 4 | G66: SCOP
B67: Mine-source heat supply | I67: kWh/year | K67: =+K54 -> 1176000 | L67: 2520000 | M67: 3153600 | N67: 3153600 | O67: 3153600 | P67: 3153600 | Q67: 3153600 | R67: 3153600 | S67: 3153600 | T67: 3153600 | U67: 3153600 | V67: 3153600 | W67: 3153600 | X67: 3153600 | Y67: 3153600 | Z67: 3153600 | AA67: 3153600 | AB67: 3153600 | AC67: 3153600 | AD67: 3153600
B68: Electricity required for the heat pump | I68: kWh/year | K68: =+K67/$F$66 -> 294000 | L68: 630000 | M68: 788400 | N68: 788400 | O68: 788400 | P68: 788400 | Q68: 788400 | R68: 788400 | S68: 788400 | T68: 788400 | U68: 788400 | V68: 788400 | W68: 788400 | X68: 788400 | Y68: 788400 | Z68: 788400 | AA68: 788400 | AB68: 788400 | AC68: 788400 | AD68: 788400
B70: The electricity for pumping fluid around the borehole depends primarily on the depth of the borehole.
B71: At zero depth, no electricity will be required, at 200m, the overall system SCOP is likely to drop from 4 down to 2.5, seriously damaging the economics of the project.
B72: However, deeper boreholes often mean warmer temperatures, so there is a balance to get to maximise the end to end efficiency.
B74: Depth of borehole | F74: 100 | G74: m
B75: Electricity required for pumping around the borehole | F75: =+F74/1000 -> 0.1 | G75: of heat delivered | I75: kWh/year | K75: =+K67*$F$75 -> 117600 | L75: 252000 | M75: 315360 | N75: 315360 | O75: 315360 | P75: 315360 | Q75: 315360 | R75: 315360 | S75: 315360 | T75: 315360 | U75: 315360 | V75: 315360 | W75: 315360 | X75: 315360 | Y75: 315360 | Z75: 315360 | AA75: 315360 | AB75: 315360 | AC75: 315360 | AD75: 315360
B77: Electricity required for heat pumps plus borehole pumping | I77: kWh/year | K77: =+K68+K75 -> 411600 | L77: 882000 | M77: 1103760 | N77: 1103760 | O77: 1103760 | P77: 1103760 | Q77: 1103760 | R77: 1103760 | S77: 1103760 | T77: 1103760 | U77: 1103760 | V77: 1103760 | W77: 1103760 | X77: 1103760 | Y77: 1103760 | Z77: 1103760 | AA77: 1103760 | AB77: 1103760 | AC77: 1103760 | AD77: 1103760
B78: SCOP including electricity for borehole pumping | I78: SCOP # | K78: =+K67/K77 -> 2.857142857 | L78: 2.857142857 | M78: 2.857142857 | N78: 2.857142857 | O78: 2.857142857 | P78: 2.857142857 | Q78: 2.857142857 | R78: 2.857142857 | S78: 2.857142857 | T78: 2.857142857 | U78: 2.857142857 | V78: 2.857142857 | W78: 2.857142857 | X78: 2.857142857 | Y78: 2.857142857 | Z78: 2.857142857 | AA78: 2.857142857 | AB78: 2.857142857 | AC78: 2.857142857 | AD78: 2.857142857
B80: We will use another rule of thumb formula to estimate electricity required for pumping around the heat network
B81: Electricity required for pumping around the heat network | F81: 0.02 | G81: of heat delivered | I81: kWh/year | K81: =+K67*$F$81 -> 23520 | L81: =+L67*$F$81 -> 50400 | M81: 63072 | N81: 63072 | O81: 63072 | P81: 63072 | Q81: 63072 | R81: 63072 | S81: 63072 | T81: 63072 | U81: 63072 | V81: 63072 | W81: 63072 | X81: 63072 | Y81: 63072 | Z81: 63072 | AA81: 63072 | AB81: 63072 | AC81: 63072 | AD81: 63072
B83: We can bring these three electricity requirements together:
B84: Electricity required for the heat pump | I84: kWh/year | K84: =+K68 -> 294000 | L84: =+L68 -> 630000 | M84: 788400 | N84: 788400 | O84: 788400 | P84: 788400 | Q84: 788400 | R84: 788400 | S84: 788400 | T84: 788400 | U84: 788400 | V84: 788400 | W84: 788400 | X84: 788400 | Y84: 788400 | Z84: 788400 | AA84: 788400 | AB84: 788400 | AC84: 788400 | AD84: 788400
B85: Electricity required for pumping around the borehole | I85: kWh/year | K85: =+K75 -> 117600 | L85: =+L75 -> 252000 | M85: 315360 | N85: 315360 | O85: 315360 | P85: 315360 | Q85: 315360 | R85: 315360 | S85: 315360 | T85: 315360 | U85: 315360 | V85: 315360 | W85: 315360 | X85: 315360 | Y85: 315360 | Z85: 315360 | AA85: 315360 | AB85: 315360 | AC85: 315360 | AD85: 315360
B86: Electricity required for pumping around the heat network | I86: kWh/year | K86: =+K81 -> 23520 | L86: =+L81 -> 50400 | M86: 63072 | N86: 63072 | O86: 63072 | P86: 63072 | Q86: 63072 | R86: 63072 | S86: 63072 | T86: 63072 | U86: 63072 | V86: 63072 | W86: 63072 | X86: 63072 | Y86: 63072 | Z86: 63072 | AA86: 63072 | AB86: 63072 | AC86: 63072 | AD86: 63072
B87: Total electricity required | I87: kWh/year | K87: =SUM(K84:K86) -> 435120 | L87: =SUM(L84:L86) -> 932400 | M87: 1166832 | N87: 1166832 | O87: 1166832 | P87: 1166832 | Q87: 1166832 | R87: 1166832 | S87: 1166832 | T87: 1166832 | U87: 1166832 | V87: 1166832 | W87: 1166832 | X87: 1166832 | Y87: 1166832 | Z87: 1166832 | AA87: 1166832 | AB87: 1166832 | AC87: 1166832 | AD87: 1166832
B89: We now know our total energy sources to meet the heat demand:
B90: Total electricity required | I90: kWh/year | K90: =+K87 -> 435120 | L90: =+L87 -> 932400 | M90: 1166832 | N90: 1166832 | O90: 1166832 | P90: 1166832 | Q90: 1166832 | R90: 1166832 | S90: 1166832 | T90: 1166832 | U90: 1166832 | V90: 1166832 | W90: 1166832 | X90: 1166832 | Y90: 1166832 | Z90: 1166832 | AA90: 1166832 | AB90: 1166832 | AC90: 1166832 | AD90: 1166832
B91: Heat supply from nearby Energy from Waste plant | I91: kWh/year | K91: =+K55 -> 504000 | L91: =+L55 -> 1080000 | M91: 2126400 | N91: 3866400 | O91: 5546400 | P91: 5606400 | Q91: 5606400 | R91: 5606400 | S91: 5606400 | T91: 5606400 | U91: 5606400 | V91: 5606400 | W91: 5606400 | X91: 5606400 | Y91: 5606400 | Z91: 5606400 | AA91: 5606400 | AB91: 5606400 | AC91: 5606400 | AD91: 5606400
B93: We have used annual level of detail in this model, which helps to inform and educate. A detailed model might look at daily or hourly detail.
B94: A large thermal store can significantly reduce the peak demands over a 24 hour period, making a daily model reasonably sufficient.
B95: The vast majority of models look at hourly detail and should take storage into account.
B97: Cashflows
B98: Energy Costs
B99: First we will look at Total Electricity Required.
B100: That could come from onsite solar, wind or another nearby electricity generator.
B101: Or it could be purchased either privately through a Power Purchase Agreement, or through the regular electricity supply.
B102: It could even be a blend of all of the above sources of electricity.
B103: The tariff could vary by time of day, or not. Be linked to wholesale markets, or not.
B104: A detailed hourly model will include profiles for any generation type with scope (e.g. solar PV) and overlay time of day pricing.
B105: Here, we will assume that all electricity is imported from a supplier at a standard rate.
B106: Electricity supply tariff | G106: =+'Electricity Market'!I12 -> 12 | H106: p/kWh | I106: £ | K106: =+$G$106/100*K90 -> 52214.4 | L106: =+$G$106/100*L90 -> 111888 | M106: 140019.84 | N106: 140019.84 | O106: 140019.84 | P106: 140019.84 | Q106: 140019.84 | R106: 140019.84 | S106: 140019.84 | T106: 140019.84 | U106: 140019.84 | V106: 140019.84 | W106: 140019.84 | X106: 140019.84 | Y106: 140019.84 | Z106: 140019.84 | AA106: 140019.84 | AB106: 140019.84 | AC106: 140019.84 | AD106: 140019.84
B108: Now we look at the top up heat supply. We assume that this comes from a nearby Energy from Waste plant.
B109: Their direct cost of heat is assumed to be wholesale electricity/"z-factor" | G109: 6 | H109: z-factor
B110: Heat supply from nearby Energy from Waste plant | G110: =+'Electricity Market'!I9/G109 -> 1.5 | H110: p/kWh | I110: £ | K110: =+$G$110/100*K91 -> 7560 | L110: 16200 | M110: 31896 | N110: 57996 | O110: 83196 | P110: 84096 | Q110: 84096 | R110: 84096 | S110: 84096 | T110: 84096 | U110: 84096 | V110: 84096 | W110: 84096 | X110: 84096 | Y110: 84096 | Z110: 84096 | AA110: 84096 | AB110: 84096 | AC110: 84096 | AD110: 84096
B113: Revenues
B114: The domestic units will have a variable price per kWh of heat plus a fixed charge per property. The fixed charge may vary depending on how large the property is.
B115: The commercial units will have a variable plus a fixed charge dependent on how large their heat connection is (often noted in £/kW/year).
B116: These tariffs need to be set high enough to cover costs+profit, yet low enough to be cheaper than alternative sources of heat.
B117: Traditionally, the alternative heat source has been gas, which is tricky because of its low cost. The accepted "counterfactual" is now becoming an air-source heat pump.
B118: Domestic Fixed charge | G118: 400 | H118: £/house/year
B119: Domestic Variable charge | G119: 8 | H119: p/kWh
B120: Commercial Fixed Charge | G120: 20 | H120: £/year/kW
B121: Commercial Variable charge | G121: 8 | H121: p/kWh
B123: Domestic retrofit house numbers | K123: =+K16 -> 100 | L123: 200 | M123: 300 | N123: 400 | O123: 500 | P123: 500 | Q123: 500 | R123: 500 | S123: 500 | T123: 500 | U123: 500 | V123: 500 | W123: 500 | X123: 500 | Y123: 500 | Z123: 500 | AA123: 500 | AB123: 500 | AC123: 500 | AD123: 500
B124: Domestic new-build house numbers | K124: =+K19 -> 100 | L124: 200 | M124: 300 | N124: 400 | O124: 500 | P124: 500 | Q124: 500 | R124: 500 | S124: 500 | T124: 500 | U124: 500 | V124: 500 | W124: 500 | X124: 500 | Y124: 500 | Z124: 500 | AA124: 500 | AB124: 500 | AC124: 500 | AD124: 500
B125: Domestic house numbers | I125: # | K125: =SUM(K123:K124) -> 200 | L125: =SUM(L123:L124) -> 400 | M125: 600 | N125: 800 | O125: 1000 | P125: 1000 | Q125: 1000 | R125: 1000 | S125: 1000 | T125: 1000 | U125: 1000 | V125: 1000 | W125: 1000 | X125: 1000 | Y125: 1000 | Z125: 1000 | AA125: 1000 | AB125: 1000 | AC125: 1000 | AD125: 1000
B126: Domestic heat demand | I126: kWh/year | K126: =+K17+K20 -> 1400000 | L126: 2800000 | M126: 4200000 | N126: 5600000 | O126: 7000000 | P126: 7000000 | Q126: 7000000 | R126: 7000000 | S126: 7000000 | T126: 7000000 | U126: 7000000 | V126: 7000000 | W126: 7000000 | X126: 7000000 | Y126: 7000000 | Z126: 7000000 | AA126: 7000000 | AB126: 7000000 | AC126: 7000000 | AD126: 7000000
B127: Commercial connection size | I127: kW | K127: =+K27 -> 0 | L127: 260 | M127: 260 | N127: 320 | O127: 320 | P127: 380 | Q127: 380 | R127: 380 | S127: 380 | T127: 380 | U127: 380 | V127: 380 | W127: 380 | X127: 380 | Y127: 380 | Z127: 380 | AA127: 380 | AB127: 380 | AC127: 380 | AD127: 380
B128: Commercial heat demand | I128: kWh/year | K128: =+K28 -> 0 | L128: 200000 | M128: 200000 | N128: 250000 | O128: 250000 | P128: 300000 | Q128: 300000 | R128: 300000 | S128: 300000 | T128: 300000 | U128: 300000 | V128: 300000 | W128: 300000 | X128: 300000 | Y128: 300000 | Z128: 300000 | AA128: 300000 | AB128: 300000 | AC128: 300000 | AD128: 300000
B130: Domestic Fixed charge | I130: £ | K130: =+$G$118*K125 -> 80000 | L130: 160000 | M130: 240000 | N130: 320000 | O130: 400000 | P130: 400000 | Q130: 400000 | R130: 400000 | S130: 400000 | T130: 400000 | U130: 400000 | V130: 400000 | W130: 400000 | X130: 400000 | Y130: 400000 | Z130: 400000 | AA130: 400000 | AB130: 400000 | AC130: 400000 | AD130: 400000
B131: Domestic Variable charge | I131: £ | K131: =+$G$119/100*K126 -> 112000 | L131: 224000 | M131: 336000 | N131: 448000 | O131: 560000 | P131: 560000 | Q131: 560000 | R131: 560000 | S131: 560000 | T131: 560000 | U131: 560000 | V131: 560000 | W131: 560000 | X131: 560000 | Y131: 560000 | Z131: 560000 | AA131: 560000 | AB131: 560000 | AC131: 560000 | AD131: 560000
B132: Commercial Fixed Charge | I132: £ | K132: =+$G$120*K127 -> 0 | L132: 5200 | M132: 5200 | N132: 6400 | O132: 6400 | P132: 7600 | Q132: 7600 | R132: 7600 | S132: 7600 | T132: 7600 | U132: 7600 | V132: 7600 | W132: 7600 | X132: 7600 | Y132: 7600 | Z132: 7600 | AA132: 7600 | AB132: 7600 | AC132: 7600 | AD132: 7600
B133: Commercial Variable charge | I133: £ | K133: =+$G$121/100*K128 -> 0 | L133: 16000 | M133: 16000 | N133: 20000 | O133: 20000 | P133: 24000 | Q133: 24000 | R133: 24000 | S133: 24000 | T133: 24000 | U133: 24000 | V133: 24000 | W133: 24000 | X133: 24000 | Y133: 24000 | Z133: 24000 | AA133: 24000 | AB133: 24000 | AC133: 24000 | AD133: 24000
B134: Total customer revenues | I134: £ | K134: =SUM(K130:K133) -> 192000 | L134: 405200 | M134: 597200 | N134: 794400 | O134: 986400 | P134: 991600 | Q134: 991600 | R134: 991600 | S134: 991600 | T134: 991600 | U134: 991600 | V134: 991600 | W134: 991600 | X134: 991600 | Y134: 991600 | Z134: 991600 | AA134: 991600 | AB134: 991600 | AC134: 991600 | AD134: 991600
B135: If there are other electricity generators on site, there may also be some revenues in here from sales of electricity. We don't include that in this model.
B137: Revenues_Connection Fees
B138: It is common for a developer to pay a connection fee when their building connections to a heat network.
B140: Domestic retrofit connections in the year | I140: # | K140: =+K123-J123 -> 100 | L140: =+L123-K123 -> 100 | M140: 100 | N140: 100 | O140: 100 | P140: 0 | Q140: 0 | R140: 0 | S140: 0 | T140: 0 | U140: 0 | V140: 0 | W140: 0 | X140: 0 | Y140: 0 | Z140: 0 | AA140: 0 | AB140: 0 | AC140: 0 | AD140: 0
B141: Domestic new-build connections in the year | I141: # | K141: =+K124-J124 -> 100 | L141: 100 | M141: 100 | N141: 100 | O141: 100 | P141: 0 | Q141: 0 | R141: 0 | S141: 0 | T141: 0 | U141: 0 | V141: 0 | W141: 0 | X141: 0 | Y141: 0 | Z141: 0 | AA141: 0 | AB141: 0 | AC141: 0 | AD141: 0
B142: Commercial connections in the year | I142: kW | K142: =+K127-J127 -> 0 | L142: =+L127-K127 -> 260 | M142: 0 | N142: 60 | O142: 0 | P142: 60 | Q142: 0 | R142: 0 | S142: 0 | T142: 0 | U142: 0 | V142: 0 | W142: 0 | X142: 0 | Y142: 0 | Z142: 0 | AA142: 0 | AB142: 0 | AC142: 0 | AD142: 0
B144: Domestic retrofit connection fee | G144: 0 | H144: £/house | I144: £ | K144: =+K140*$G144 -> 0 | L144: =+L140*$G144 -> 0 | M144: 0 | N144: 0 | O144: 0 | P144: 0 | Q144: 0 | R144: 0 | S144: 0 | T144: 0 | U144: 0 | V144: 0 | W144: 0 | X144: 0 | Y144: 0 | Z144: 0 | AA144: 0 | AB144: 0 | AC144: 0 | AD144: 0
B145: Domestic new-build connection fee | G145: 1000 | H145: £/house | I145: £ | K145: =+K141*$G145 -> 100000 | L145: =+L141*$G145 -> 100000 | M145: 100000 | N145: 100000 | O145: 100000 | P145: 0 | Q145: 0 | R145: 0 | S145: 0 | T145: 0 | U145: 0 | V145: 0 | W145: 0 | X145: 0 | Y145: 0 | Z145: 0 | AA145: 0 | AB145: 0 | AC145: 0 | AD145: 0
B146: Commercial connection fee | G146: 200 | H146: £/kW | I146: £ | K146: =+K142*$G146 -> 0 | L146: =+L142*$G146 -> 52000 | M146: 0 | N146: 12000 | O146: 0 | P146: 12000 | Q146: 0 | R146: 0 | S146: 0 | T146: 0 | U146: 0 | V146: 0 | W146: 0 | X146: 0 | Y146: 0 | Z146: 0 | AA146: 0 | AB146: 0 | AC146: 0 | AD146: 0
B147: Total connection fees | I147: £ | K147: =SUM(K144:K146) -> 100000 | L147: =SUM(L144:L146) -> 152000 | M147: 100000 | N147: 112000 | O147: 100000 | P147: 12000 | Q147: 0 | R147: 0 | S147: 0 | T147: 0 | U147: 0 | V147: 0 | W147: 0 | X147: 0 | Y147: 0 | Z147: 0 | AA147: 0 | AB147: 0 | AC147: 0 | AD147: 0
B149: There are differing accounting treatments for these connection fees. Sometimes they are treated as "Prepayments" and spread over the term of the contract. Sometimes they are recognised as income in the year they are received.
B151: Vital estimates £1.2m for the distribution. Stephen estimated £1.9m for Tudor. Then there is a spur back to the school.
B153: Capital costs
B154: A mine-source project could have two extraction boreholes, plus one re-injection borehole. Plus an exploratory borehole will need to be drilled. And not all boreholes will be succesful.
B155: The best case scenario would be no boreholes; a bad case scenario would be about 6.
B156: The cost of boreholes can vary from £500/m to £2000/m.
B157: Having to drill 3 boreholes to 200m depth at £1000/m would therefore cost £600,000.
B158: At Caerau, the estimated cost for boreholes was £750,000 for 140kW peak, which is over £5000/kW. A further £700,000 was required to supply heat to one building.
B160: Higher heat demands mean either wider boreholes (for bigger pumps) or more boreholes.
B161: At Heerlen, the reported cost was £6m for a 1.2MW system, amounting to £5000/kW as an all-in cost.
B162: A large air-source heat pump should be no more than £750/kW all inclusive.
B164: Assumed Capital for our project
B165: Mine Source Heat Pump | E165: =G45 -> 400 | F165: kW | G165: 5000 | H165: £/kW | I165: £ | J165: =E165*G165 -> 2000000
B166: Rest of plant | E166: =3*(Y16+Y19)+Y27 -> 3380 | F166: kW | G166: 750 | H166: £/kW | I166: £ | J166: =E166*G166 -> 2535000
B168: Domestic retrofit connections in the year | I168: # | K168: =K140 -> 100 | L168: =L140 -> 100 | M168: 100 | N168: 100 | O168: 100 | P168: 0 | Q168: 0 | R168: 0 | S168: 0 | T168: 0 | U168: 0 | V168: 0 | W168: 0 | X168: 0 | Y168: 0 | Z168: 0 | AA168: 0 | AB168: 0 | AC168: 0 | AD168: 0
B169: Domestic new-build connections in the year | I169: # | K169: =K141 -> 100 | L169: 100 | M169: 100 | N169: 100 | O169: 100 | P169: 0 | Q169: 0 | R169: 0 | S169: 0 | T169: 0 | U169: 0 | V169: 0 | W169: 0 | X169: 0 | Y169: 0 | Z169: 0 | AA169: 0 | AB169: 0 | AC169: 0 | AD169: 0
B170: Commercial connections in the year | I170: kW | K170: =K142 -> 0 | L170: 260 | M170: 0 | N170: 60 | O170: 0 | P170: 60 | Q170: 0 | R170: 0 | S170: 0 | T170: 0 | U170: 0 | V170: 0 | W170: 0 | X170: 0 | Y170: 0 | Z170: 0 | AA170: 0 | AB170: 0 | AC170: 0 | AD170: 0
B172: Domestic retrofit Heat Network cost | G172: 10000 | H172: £/house | I172: £ | K172: =+K168*$G172 -> 1000000 | L172: =+L168*$G172 -> 1000000 | M172: 1000000 | N172: 1000000 | O172: 1000000 | P172: 0 | Q172: 0 | R172: 0 | S172: 0 | T172: 0 | U172: 0 | V172: 0 | W172: 0 | X172: 0 | Y172: 0 | Z172: 0 | AA172: 0 | AB172: 0 | AC172: 0 | AD172: 0
B173: Domestic new-build Heat Network cost | G173: 5000 | H173: £/house | I173: £ | K173: =+K169*$G173 -> 500000 | L173: 500000 | M173: 500000 | N173: 500000 | O173: 500000 | P173: 0 | Q173: 0 | R173: 0 | S173: 0 | T173: 0 | U173: 0 | V173: 0 | W173: 0 | X173: 0 | Y173: 0 | Z173: 0 | AA173: 0 | AB173: 0 | AC173: 0 | AD173: 0
B174: Commercial Heat Network cost | G174: 1000 | H174: £/kW | I174: £ | K174: 0 | L174: 260000 | M174: 0 | N174: 60000 | O174: 0 | P174: 60000 | Q174: 0 | R174: 0 | S174: 0 | T174: 0 | U174: 0 | V174: 0 | W174: 0 | X174: 0 | Y174: 0 | Z174: 0 | AA174: 0 | AB174: 0 | AC174: 0 | AD174: 0
B175: Total Heat Network cost | I175: £ | K175: =SUM(K172:K174) -> 1500000 | L175: =SUM(L172:L174) -> 1760000 | M175: 1500000 | N175: 1560000 | O175: 1500000 | P175: 60000 | Q175: 0 | R175: 0 | S175: 0 | T175: 0 | U175: 0 | V175: 0 | W175: 0 | X175: 0 | Y175: 0 | Z175: 0 | AA175: 0 | AB175: 0 | AC175: 0 | AD175: 0
B176: The capital cost of retrofiting heat networks to existing houses is likely to be prohibitively expensive, except for blocks of flats.
B177: New build domestic properties are economically viable for heat networks, although detached homes are still more likely to have individual heat pumps.
B179: Total Capital | I179: £ | J179: =+J165+J166+J175 -> 4535000 | K179: =+K165+K166+K175 -> 1500000 | L179: 1760000 | M179: 1500000 | N179: 1560000 | O179: 1500000 | P179: 60000 | Q179: 0 | R179: 0 | S179: 0 | T179: 0 | U179: 0 | V179: 0 | W179: 0 | X179: 0 | Y179: 0 | Z179: 0 | AA179: 0 | AB179: 0 | AC179: 0 | AD179: 0
B180: There will also be some capital costs to replace parts that break, but we exclude that from this simplified model.
B182: Maintenance costs
B183: Maintenance costs on mine energy projects can be very high. A recent WSP paper put the estimate at 5% to 13% of the capital cost of the boreholes.
B184: For the rest of the plant a typical assumption on maintenance is 2% of capital. For the heat network, the maintenance should be less than 1%.
B185: Borehole Maintenance | C185: 0.08 | I185: £ | K185: =$C185*SUM($J165:K165) -> 160000 | L185: =$C185*SUM($J165:L165) -> 160000 | M185: =$C185*SUM($J165:M165) -> 160000 | N185: =$C185*SUM($J165:N165) -> 160000 | O185: =$C185*SUM($J165:O165) -> 160000 | P185: =$C185*SUM($J165:P165) -> 160000 | Q185: =$C185*SUM($J165:Q165) -> 160000 | R185: =$C185*SUM($J165:R165) -> 160000 | S185: =$C185*SUM($J165:S165) -> 160000 | T185: =$C185*SUM($J165:T165) -> 160000 | U185: =$C185*SUM($J165:U165) -> 160000 | V185: =$C185*SUM($J165:V165) -> 160000 | W185: =$C185*SUM($J165:W165) -> 160000 | X185: =$C185*SUM($J165:X165) -> 160000 | Y185: =$C185*SUM($J165:Y165) -> 160000 | Z185: =$C185*SUM($J165:Z165) -> 160000 | AA185: =$C185*SUM($J165:AA165) -> 160000 | AB185: =$C185*SUM($J165:AB165) -> 160000 | AC185: =$C185*SUM($J165:AC165) -> 160000 | AD185: =$C185*SUM($J165:AD165) -> 160000
B186: Rest of plant maintenance | C186: 0.02 | I186: £ | K186: =$C186*SUM($J166:K166) -> 50700 | L186: =$C186*SUM($J166:L166) -> 50700 | M186: =$C186*SUM($J166:M166) -> 50700 | N186: =$C186*SUM($J166:N166) -> 50700 | O186: =$C186*SUM($J166:O166) -> 50700 | P186: =$C186*SUM($J166:P166) -> 50700 | Q186: =$C186*SUM($J166:Q166) -> 50700 | R186: =$C186*SUM($J166:R166) -> 50700 | S186: =$C186*SUM($J166:S166) -> 50700 | T186: =$C186*SUM($J166:T166) -> 50700 | U186: =$C186*SUM($J166:U166) -> 50700 | V186: =$C186*SUM($J166:V166) -> 50700 | W186: =$C186*SUM($J166:W166) -> 50700 | X186: =$C186*SUM($J166:X166) -> 50700 | Y186: =$C186*SUM($J166:Y166) -> 50700 | Z186: =$C186*SUM($J166:Z166) -> 50700 | AA186: =$C186*SUM($J166:AA166) -> 50700 | AB186: =$C186*SUM($J166:AB166) -> 50700 | AC186: =$C186*SUM($J166:AC166) -> 50700 | AD186: =$C186*SUM($J166:AD166) -> 50700
B187: Heat Network maintenance | C187: 0.01 | I187: £ | K187: =$C187*SUM($J175:K175) -> 15000 | L187: =$C187*SUM($J175:L175) -> 32600 | M187: =$C187*SUM($J175:M175) -> 47600 | N187: =$C187*SUM($J175:N175) -> 63200 | O187: =$C187*SUM($J175:O175) -> 78200 | P187: =$C187*SUM($J175:P175) -> 78800 | Q187: =$C187*SUM($J175:Q175) -> 78800 | R187: =$C187*SUM($J175:R175) -> 78800 | S187: =$C187*SUM($J175:S175) -> 78800 | T187: =$C187*SUM($J175:T175) -> 78800 | U187: =$C187*SUM($J175:U175) -> 78800 | V187: =$C187*SUM($J175:V175) -> 78800 | W187: =$C187*SUM($J175:W175) -> 78800 | X187: =$C187*SUM($J175:X175) -> 78800 | Y187: =$C187*SUM($J175:Y175) -> 78800 | Z187: =$C187*SUM($J175:Z175) -> 78800 | AA187: =$C187*SUM($J175:AA175) -> 78800 | AB187: =$C187*SUM($J175:AB175) -> 78800 | AC187: =$C187*SUM($J175:AC175) -> 78800 | AD187: =$C187*SUM($J175:AD175) -> 78800
B188: Total maintenance cost | I188: £ | K188: =SUM(K185:K187) -> 225700 | L188: =SUM(L185:L187) -> 243300 | M188: 258300 | N188: 273900 | O188: 288900 | P188: 289500 | Q188: 289500 | R188: 289500 | S188: 289500 | T188: 289500 | U188: 289500 | V188: 289500 | W188: 289500 | X188: 289500 | Y188: 289500 | Z188: 289500 | AA188: 289500 | AB188: 289500 | AC188: 289500 | AD188: 289500
B190: Cashflow Summary
B191: Revenues | J191: =J134 -> 0 | K191: =K134 -> 192000 | L191: 405200 | M191: 597200 | N191: 794400 | O191: 986400 | P191: 991600 | Q191: 991600 | R191: 991600 | S191: 991600 | T191: 991600 | U191: 991600 | V191: 991600 | W191: 991600 | X191: 991600 | Y191: 991600 | Z191: 991600 | AA191: 991600 | AB191: 991600 | AC191: 991600 | AD191: 991600
B192: Energy costs | J192: =-J106-J110 -> 0 | K192: =-K106-K110 -> -59774.4 | L192: -128088 | M192: -171915.84 | N192: -198015.84 | O192: -223215.84 | P192: -224115.84 | Q192: -224115.84 | R192: -224115.84 | S192: -224115.84 | T192: -224115.84 | U192: -224115.84 | V192: -224115.84 | W192: -224115.84 | X192: -224115.84 | Y192: -224115.84 | Z192: -224115.84 | AA192: -224115.84 | AB192: -224115.84 | AC192: -224115.84 | AD192: -224115.84
B193: Maintenance costs | J193: =-J188 -> 0 | K193: =-K188 -> -225700 | L193: -243300 | M193: -258300 | N193: -273900 | O193: -288900 | P193: -289500 | Q193: -289500 | R193: -289500 | S193: -289500 | T193: -289500 | U193: -289500 | V193: -289500 | W193: -289500 | X193: -289500 | Y193: -289500 | Z193: -289500 | AA193: -289500 | AB193: -289500 | AC193: -289500 | AD193: -289500
B194: Capital costs | J194: =-J179 -> -4535000 | K194: =-K179 -> -1500000 | L194: -1760000 | M194: -1500000 | N194: -1560000 | O194: -1500000 | P194: -60000 | Q194: 0 | R194: 0 | S194: 0 | T194: 0 | U194: 0 | V194: 0 | W194: 0 | X194: 0 | Y194: 0 | Z194: 0 | AA194: 0 | AB194: 0 | AC194: 0 | AD194: 0
B195: Connection Fees | J195: =J147 -> 0 | K195: =K147 -> 100000 | L195: 152000 | M195: 100000 | N195: 112000 | O195: 100000 | P195: 12000 | Q195: 0 | R195: 0 | S195: 0 | T195: 0 | U195: 0 | V195: 0 | W195: 0 | X195: 0 | Y195: 0 | Z195: 0 | AA195: 0 | AB195: 0 | AC195: 0 | AD195: 0
B196: Total cashflow (before finance or tax) | J196: =SUM(J191:J195) -> -4535000 | K196: =SUM(K191:K195) -> -1493474.4 | L196: -1574188 | M196: -1233015.84 | N196: -1125515.84 | O196: -925715.84 | P196: 429984.16 | Q196: 477984.16 | R196: 477984.16 | S196: 477984.16 | T196: 477984.16 | U196: 477984.16 | V196: 477984.16 | W196: 477984.16 | X196: 477984.16 | Y196: 477984.16 | Z196: 477984.16 | AA196: 477984.16 | AB196: 477984.16 | AC196: 477984.16 | AD196: 477984.16

Sheet Case Studies
B1: A Review of the Performance of Minewater Heating and Cooling Systems David B. Walls, David Banks, Adrian J. Boyce and Neil M. Burnside
B3: Minewater Project | C3: Location | D3: Install year | E3: Depth m | F3: Boreholes | G3: Flow l/s | H3: Temp C | I3: kW | J3: Type | K3: Notes
B4: Shettleton Housing Association | C4: Glasgow | D4: 1999 | E4: Shallow | F4: 1+1 | G4: 3 | I4: 65 | K4: Out of use due to maintenance costs
B5: Lumphinnans | C5: Fife | D5: 2000 | E5: 170 | F5: 1+1 | G5: 3 | K5: Out of use due to maintenance issues
B6: Markham | C6: Bolsover | E6: Deep | F6: 1 | I6: 20 | K6: High cost of pumping around the borehole
B7: Caphouse | C7: Wakefield | I7: 10 | J7: Research | K7: Out of use: was research only
B8: Dawdon | C8: County Durham | D8: 2011 | G8: 1 | I8: 12 | J8: Pilot | K8: Operational
B9: Dawdon | C9: County Durham | D9: 2025 | G9: 150 | H9: 20 | I9: 6000 | J9: Concept | K9: To supply Seaham Garden Village
B10: Abbotsford Road | C10: Gateshead | E10: 120 | F10: 3+3 | G10: 100 | I10: 2400 | J10: As Designed
B11: Abbotsford Road | C11: Gateshead | E11: 120 | F11: 1+3 | G11: 30 | H11: 11 | J11: Actual performance | K11: Operational, but low yielding
B12: Nest Road | C12: Gateshead | E12: 130-280 | F12: 1+1+2failed | G12: 60 | I12: 1200 | K12: Operational
B13: Crynant | C13: West Glamorgan | E13: 65 | G13: 2 | H13: 12 | I13: 35 | K13: Out of use due to maintenance issues
B14: Egremont | C14: Cumbria | E14: 250 | F14: 1 | G14: 50 | I14: 100+ | J14: Trial | K14: Potential for over 1MW heat, but no heat demand at location
B15: Folldal | C15: Norway | E15: 600 | F15: 1 | I15: 18 | K15: Since replaced by an Air-Air heat pump
B16: Kongsberg | C16: Norway | E16: 250 | F16: 1 | I16: 12 | K16: Operational
B17: Osinnikovskaya | C17: Russia | I17: 130 | K17: Operational
B18: Novoshakhtinsk | C18: Russia | E18: 390 | F18: 1 | G18: 28 | H18: 23 | I18: =384*2 -> 768 | K18: Operational
B19: Mieres | C19: Spain | E19: 360 | G19: 100 | H19: 23 | I19: 3900 | K19: Operational
B20: Heerlen | C20: Netherlands | D20: 2005 | E20: 700 | F20: 4+1 | H20: 28 | K20: Operational
B21: Bytom | C21: Poland | D21: 2020 | G21: 1 out of 50 | H21: 28 | I21: 9 | J21: Pilot | K21: Operational
B22: Czeladz | C22: Poland | D22: 2011 | E22: 210 | F22: 1 | G22: 6 out of 400 | H22: 15 | I22: =2*59 -> 118 | K22: Operational
B23: Sobieski | C23: Poland | D23: 2015 | E23: 500 | G23: 18 out of 350 | H23: 15 | I23: 420 | K23: Operational
B24: Jeremenko | C24: Czech Republic | D24: 2006 | H24: 29 | I24: 91 | K24: Operational
